bitfinex/quotes_SOLUSD_20250414
["timestamp","ask_amount","ask_price","bid_price","bid_amount"]
[1744607821222,56.09936944,133.94,133.93,82.3898]
[1744607821801,62.07216944,133.94,133.93,82.3898]
[1744607824026,62.49865415,133.94,133.93,82.3898]
[1744607824203,0.14216157,133.92,133.88,82.4528]
[1744607824522,11.44972058,133.9,133.88,82.4528]
[1744607825716,11.44972058,133.93,133.88,93.90252058]
[1744607825914,30.09936944,133.93,133.88,93.90252058]
[1744607826116,17.42342058,133.92,133.88,82.4528]
[1744607826424,11.44972058,133.9,133.88,82.4528]
[1744607826921,11.44972058,133.91,133.88,82.4528]
[1744607827124,30.09936944,133.91,133.88,82.4528]
[1744607827325,11.44972058,133.91,133.88,82.4528]
[1744607829427,17.42392058,133.91,133.88,82.4528]
[1744607830127,11.44972058,133.9,133.88,82.4528]
[1744607830507,30.52585415,133.89,133.88,82.4528]
[1744607830711,30.52585415,133.89,133.88,0.063]
[1744607831209,45.07613357,133.87,133.86,0.063]
[1744607831529,63.36585415,133.87,133.86,0.063]
[1744607832729,69.34175415,133.87,133.86,0.063]
[1744607833231,76.22893914,133.87,133.86,0.063]
[1744607837922,24.31210557,133.89,133.86,0.063]
[1744607838125,18.64964886,133.9,133.87,18.33690557]
[1744607838327,12.8143,133.91,133.87,100.93690557]
[1744607839016,6.84,133.91,133.87,100.93690557]
[1744607839337,5.9734,133.93,133.89,18.33690557]
[1744607839528,24.31030557,133.93,133.89,82.6]
[1744607840036,18.33690557,133.91,133.89,82.6]
[1744607840413,37.41303914,133.9,133.89,82.6]
[1744607840624,0.42648471,133.89,133.86,82.663]
[1744607840938,36.98655443,133.87,133.86,82.663]
[1744607841519,43.38893914,133.87,133.86,82.663]
[1744607842128,61.72584471,133.87,133.86,82.663]
[1744607842330,43.38893914,133.87,133.86,82.663]
[1744607843222,42.96245443,133.87,133.86,82.663]
[1744607844031,18.33690557,133.88,133.86,82.663]
[1744607845215,18.33690557,133.9,133.86,82.663]
[1744607845534,6.84,133.91,133.87,18.33690557]
[1744607845939,6.84,133.91,133.87,24.31260557]
[1744607846442,31.15110557,133.91,133.86,106.97610557]
[1744607849038,6.84,133.91,133.86,106.97610557]
[1744607850343,42.95965443,133.94,133.89,18.33690557]
[1744607850642,18.64964886,133.94,133.89,100.93690557]
[1744607850851,6.84,133.95,133.91,18.33690557]
[1744607851145,18.33690557,133.97,133.92,18.33690557]
[1744607851346,5.971,133.98,133.93,18.33690557]
[1744607851642,24.30790557,133.98,133.93,18.33690557]
[1744607854138,18.64964886,133.97,133.93,100.93690557]
[1744607854349,18.33690557,133.94,133.89,82.6]
[1744607854542,18.33690557,133.91,133.89,82.6]
[1744607854723,18.33690557,133.9,133.88,6.356]
[1744607856850,24.31180557,133.9,133.88,6.356]
[1744607857644,18.33690557,133.91,133.88,6.356]
[1744607857836,24.31070557,133.92,133.88,6.356]
[1744607858940,18.33690557,133.91,133.88,6.356]
[1744607859139,18.33690557,133.94,133.89,18.33690557]
[1744607859346,18.36690557,133.97,133.92,18.33690557]
[1744607859543,18.36690557,133.97,133.92,100.93690557]
[1744607860448,24.33850557,133.97,133.92,106.91060557]
[1744607860649,0.03,133.97,133.96,18.33690557]
[1744607860947,0.03,133.97,133.96,100.93690557]
[1744607862752,0.03,133.97,133.96,82.6]
[1744607862956,18.36690557,133.97,133.96,82.6]
[1744607863652,37.01655443,133.97,133.96,82.6]
[1744607863955,0.14216157,133.96,133.92,82.6]
[1744607864144,43.38623914,133.93,133.92,82.6]
[1744607864350,0.42648471,133.92,133.87,84.2308]
[1744607864567,18.33690557,133.91,133.87,84.2308]
[1744607864948,18.33690557,133.92,133.87,102.56770557]
[1744607865254,18.33690557,133.95,133.9,18.33690557]
[1744607865445,36.98655443,133.95,133.9,100.93690557]
[1744607865958,18.33690557,133.93,133.9,82.6]
[1744607866355,24.30980557,133.94,133.9,82.6]
[1744607866536,18.33690557,133.93,133.9,82.6]
[1744607866738,18.33690557,133.92,133.9,82.6]
[1744607867233,36.98655443,133.93,133.9,82.6]
[1744607867637,5.9729,133.94,133.9,82.6]
[1744607867638,18.33690557,133.94,133.9,88.5745]
[1744607868153,18.33690557,133.94,133.9,82.6]
[1744607868350,24.31040557,133.93,133.9,82.6]
[1744607868658,18.33690557,133.92,133.9,82.6]
[1744607871638,24.31060557,133.92,133.9,82.6]
[1744607873158,18.64964886,133.93,133.9,82.6]
[1744607873344,18.33690557,133.92,133.9,82.6]
[1744607876442,36.98655443,133.91,133.9,82.6]
[1744607876861,24.31070557,133.92,133.9,82.6]
[1744607880366,42.95985443,133.93,133.9,82.6]
[1744607880563,0.42648471,133.94,133.9,82.6]
[1744607880564,18.33690557,133.94,133.9,82.6]
[1744607880755,18.33690557,133.95,133.9,100.93690557]
[1744607881067,24.30920557,133.95,133.9,100.93690557]
[1744607881261,25.48964886,133.96,133.9,82.6]
[1744607881262,17.4198138,133.94,133.9,82.6]
[1744607881855,5.973,133.94,133.9,94.0468138]
[1744607882569,17.4198138,133.94,133.9,82.6]
[1744607882952,5.973,133.94,133.9,94.0468138]
[1744607883269,17.4193138,133.95,133.9,100.0213138]
[1744607883668,17.4193138,133.95,133.9,94.0468138]
[1744607883872,17.4193138,133.95,133.9,82.6]
[1744607884868,30.09646266,133.91,133.9,82.6]
[1744607885050,30.52294737,133.91,133.9,82.6]
[1744607886170,36.49704737,133.91,133.9,82.6]
[1744607886471,0.42648471,133.9,133.86,88.9247]
[1744607886665,11.4468138,133.89,133.86,88.9247]
[1744607887374,18.33007475,133.89,133.86,82.663]
[1744607887553,18.33007475,133.88,133.86,82.663]
[1744607887873,18.33007475,133.89,133.86,82.663]
[1744607888255,18.33007475,133.91,133.86,100.99307475]
[1744607888669,5.9746,133.9,133.86,100.99307475]
[1744607888872,24.30467475,133.9,133.86,82.663]
[1744607890667,5.9746,133.9,133.86,82.663]
[1744607890847,24.30467475,133.9,133.86,82.663]
[1744607891055,36.97972361,133.89,133.86,82.663]
[1744607892378,5.9755,133.88,133.86,82.663]
[1744607892879,24.30557475,133.88,133.86,82.663]
[1744607893873,5.9755,133.88,133.86,82.663]
[1744607894359,42.95492361,133.89,133.86,82.663]
[1744607895481,18.33007475,133.89,133.86,82.663]
[1744607895776,24.62334886,133.92,133.88,18.33007475]
[1744607895976,5.9737,133.92,133.88,18.33007475]
[1744607897287,36.97972361,133.91,133.86,100.99307475]
[1744607897576,18.33007475,133.9,133.86,82.663]
[1744607898054,36.97972361,133.91,133.86,82.663]
[1744607898255,36.97972361,133.91,133.86,100.99307475]
[1744607898979,5.9746,133.9,133.86,100.99307475]
[1744607899873,18.64964886,133.89,133.86,82.663]
[1744607900073,18.33007475,133.87,133.86,82.663]
[1744607900491,18.33007475,133.88,133.86,82.663]
[1744607901177,24.30567475,133.88,133.86,82.663]
[1744607901575,5.9756,133.88,133.86,82.663]
[1744607901980,24.30567475,133.88,133.86,82.663]
[1744607902686,5.9756,133.88,133.86,82.663]
[1744607902981,18.33007475,133.91,133.86,106.96937475]
[1744607903766,26.0,133.92,133.89,1.613]
[1744607903977,18.33007475,133.9,133.86,82.663]
[1744607904166,18.33007475,133.88,133.86,82.663]
[1744607905278,24.30587475,133.88,133.86,82.663]
[1744607907187,11.45809688,133.88,133.86,82.663]
[1744607908592,17.43379688,133.88,133.86,82.663]
[1744607909685,11.45809688,133.89,133.86,82.663]
[1744607909882,17.43309688,133.89,133.86,82.663]
[1744607911704,5.975,133.89,133.86,82.663]
[1744607911889,5.9746,133.9,133.86,94.12109688]
[1744607912076,17.43229688,133.91,133.86,100.09739688]
[1744607912275,5.41034447,133.96,133.86,100.09739688]
[1744607912276,18.64964886,133.95,133.9,11.45809688]
[1744607912577,6.0015,133.97,133.93,11.45809688]
[1744607912894,6.0015,133.97,133.93,94.05809688]
[1744607913093,17.45959688,133.97,133.93,94.05809688]
[1744607913275,5.9723,133.95,133.93,82.6]
[1744607913478,17.43039688,133.95,133.93,82.6]
[1744607913884,5.9723,133.95,133.93,82.6]
[1744607914179,17.43019688,133.96,133.93,82.6]
[1744607916200,11.48809688,133.97,133.93,82.6]
[1744607916498,6.0016,133.97,133.93,94.05809688]
[1744607916811,0.03,133.97,133.94,11.45809688]
[1744607917305,11.45809688,133.95,133.94,82.6]
[1744607917479,30.10774574,133.95,133.94,82.6]
[1744607918414,36.08004574,133.95,133.94,82.6]
[1744607918574,17.43039688,133.95,133.94,82.6]
[1744607918783,5.9723,133.95,133.94,82.6]
[1744607918979,17.43039688,133.95,133.94,82.6]
[1744607921202,5.9719,133.96,133.94,82.6]
[1744607921609,17.42999688,133.96,133.94,82.6]
[1744607922904,17.43039688,133.95,133.94,82.6]
[1744607926006,36.50653045,133.95,133.94,82.6]
[1744607927513,62.08004574,133.95,133.94,82.6]
[1744607927995,50.62194886,133.95,133.94,82.6]
[1744607928197,26.0,133.95,133.94,82.6]
[1744607928512,43.43039688,133.95,133.94,82.6]
[1744607932995,11.45809688,133.95,133.94,82.6]
[1744607933194,5.9721,133.96,133.94,82.6]
[1744607933407,24.29969688,133.97,133.94,82.6]
[1744607933792,12.8416,133.97,133.94,82.6]
[1744607933998,0.03,133.97,133.94,106.32839688]
[1744607935804,0.03,133.97,133.96,11.45809688]
[1744607936117,0.03,133.98,133.97,82.57]
[1744607942338,30.13774574,133.98,133.97,82.57]
[1744607943832,17.45909688,133.98,133.97,82.57]
[1744607944024,11.48809688,133.98,133.97,82.57]
[1744607944332,17.45909688,133.98,133.97,82.57]
[1744607947937,29.34367847,133.98,133.97,82.57]
[1744607948647,18.64964886,133.93,133.92,47.9142]
[1744607948856,26.0,133.94,133.88,7.8976]
[1744607949151,37.45809688,133.94,133.92,82.6]
[1744607949316,37.45809688,133.94,133.89,94.05809688]
[1744607949732,11.45809688,133.96,133.91,11.45809688]
[1744607949926,17.43019688,133.96,133.91,11.45809688]
[1744607950123,17.42969688,133.97,133.92,11.45809688]
[1744607950326,17.42969688,133.97,133.92,94.05809688]
[1744607950735,11.45809688,133.96,133.92,82.6]
[1744607950922,11.45809688,133.93,133.92,82.6]
[1744607952123,17.43129688,133.93,133.92,82.6]
[1744607952327,36.08094574,133.93,133.92,82.6]
[1744607953134,14.9288,133.97,133.92,82.6]
[1744607953327,18.64964886,133.96,133.92,82.6]
[1744607953526,30.10774574,133.96,133.92,82.6]
[1744607953942,11.45809688,133.96,133.92,82.6]
[1744607954141,17.42949688,133.97,133.92,94.05809688]
[1744607954542,11.45809688,133.96,133.92,82.6]
[1744607955340,11.45809688,133.95,133.92,82.6]
[1744607956143,11.45809688,133.96,133.92,82.6]
[1744607957151,17.43039688,133.96,133.92,82.6]
[1744607957352,11.45809688,133.95,133.92,82.6]
[1744607957756,11.45809688,133.94,133.92,82.6]
[1744607958254,17.43039688,133.96,133.92,88.5737]
[1744607958862,11.45809688,133.96,133.92,88.5737]
[1744607959377,11.45809688,133.97,133.92,100.03179688]
[1744607961751,0.03,133.98,133.94,19.43759688]
[1744607961949,0.03,133.98,133.95,11.45809688]
[1744607962252,0.03,133.98,133.95,82.6]
[1744607962653,0.03,133.98,133.95,94.05809688]
[1744607963856,0.03,133.98,133.95,82.6]
[1744607963857,30.13774574,133.98,133.95,82.6]
[1744607964062,30.53423045,133.96,133.95,82.6]
[1744607964260,18.64964886,133.95,133.9,90.5795]
[1744607964466,11.45809688,133.91,133.9,82.6]
[1744607964780,30.10774574,133.91,133.9,82.6]
[1744607965852,36.08184574,133.91,133.9,82.6]
[1744607967267,18.64964886,133.9,133.89,82.663]
[1744607967586,11.45809688,133.9,133.89,82.663]
[1744607967754,6.82,133.93,133.89,11.52109688]
[1744607967957,5.9729,133.94,133.9,11.45809688]
[1744607968169,5.9729,133.94,133.9,94.05809688]
[1744607968371,5.9729,133.94,133.9,82.6]
[1744607968578,17.43099688,133.94,133.9,82.6]
[1744607970074,11.45809688,133.91,133.9,82.6]
[1744607971563,17.43219688,133.91,133.9,82.6]
[1744607971764,17.43149688,133.93,133.9,82.6]
[1744607972160,11.45809688,133.92,133.9,82.6]
[1744607972376,30.10774574,133.91,133.9,82.6]
[1744607973384,36.08184574,133.91,133.9,82.6]
[1744607973885,17.43209688,133.92,133.9,82.6]
[1744607974188,5.974,133.92,133.9,82.6]
[1744607974365,17.43139688,133.93,133.9,82.6]
[1744607975284,36.08064574,133.94,133.9,82.6]
[1744607975783,11.45809688,133.93,133.9,82.6]
[1744607976164,11.45809688,133.92,133.9,82.6]
[1744607976579,11.45809688,133.93,133.9,82.6]
[1744607977586,5.9737,133.92,133.9,82.6]
[1744607978080,17.43069688,133.95,133.9,100.03259688]
[1744607978586,17.43069688,133.95,133.9,94.05809688]
[1744607978881,17.43069688,133.95,133.9,100.03259688]
[1744607980087,17.43009688,133.96,133.91,11.45809688]
[1744607980390,17.43009688,133.96,133.92,19.43759688]
[1744607980574,42.89934574,133.97,133.92,19.43759688]
[1744607980888,42.89934574,133.97,133.92,102.03759688]
[1744607981190,6.82,133.97,133.92,102.03759688]
[1744607981381,0.03,133.98,133.95,11.45809688]
[1744607981588,0.03,133.98,133.96,11.45809688]
[1744607982872,0.03,133.98,133.95,94.05809688]
[1744607983989,0.03,133.98,133.95,100.03039688]
[1744607984193,0.03,133.98,133.96,11.45809688]
[1744607984490,11.48809688,133.98,133.95,82.6]
[1744607985265,0.03,133.98,133.95,82.6]
[1744607985585,11.48809688,133.98,133.95,82.6]
[1744607987190,5.9714,133.97,133.95,82.6]
[1744607987398,11.45809688,133.96,133.95,82.6]
[1744607987571,30.10774574,133.96,133.95,82.6]
[1744607989590,36.07964574,133.96,133.95,82.6]
[1744607990977,11.45809688,133.97,133.95,82.6]
[1744607991167,0.03,133.98,133.95,82.6]
[1744607992592,11.48809688,133.98,133.95,82.6]
[1744607992791,11.45809688,133.97,133.95,82.6]
[1744607992973,11.48809688,133.98,133.95,82.6]
[1744607993780,0.03,133.98,133.95,88.5721]
[1744607993981,0.03,133.98,133.97,11.45809688]
[1744607994184,0.03,133.98,133.97,94.05809688]
[1744607994588,0.03,133.98,133.97,82.6]
[1744608001182,11.48809688,133.98,133.97,82.6]
[1744608002218,36.53523045,133.98,133.97,82.6]
[1744608002392,47.99332733,133.98,133.97,82.6]
[1744608002786,0.03,133.98,133.97,82.6]
[1744608005095,0.03,133.98,133.97,100.02949688]
[1744608005690,0.03,133.98,133.97,94.05809688]
[1744608006212,0.03,133.98,133.97,82.6]
[1744608011835,11.48809688,133.98,133.97,82.6]
[1744608012026,0.03,134.01,133.98,82.57]
[1744608012217,5.9997,134.01,133.98,82.57]
[1744608012527,0.03,134.01,133.98,94.02809688]
[1744608012719,0.03,134.01,133.98,82.57]
[1744608013223,17.45779688,134.01,133.98,82.57]
[1744608013909,11.48809688,134.01,133.98,82.57]
[1744608014305,11.45809688,134.0,133.98,82.57]
[1744608014510,18.79181043,133.98,133.94,82.57]
[1744608014759,18.64964886,133.94,133.91,82.633]
[1744608014930,30.10774574,133.92,133.91,0.063]
[1744608015304,11.45809688,133.93,133.91,0.063]
[1744608015896,5.9728,133.94,133.91,0.063]
[1744608015897,11.45809688,133.94,133.91,0.063]
[1744608016123,11.45809688,133.97,133.92,11.45809688]
[1744608016306,11.45809688,133.96,133.92,82.57]
[1744608016515,11.45809688,133.95,133.92,82.57]
[1744608017322,11.45809688,133.97,133.92,94.02809688]
[1744608017621,11.45809688,133.95,133.92,82.57]
[1744608018005,11.45809688,133.93,133.91,0.063]
[1744608018211,11.45809688,133.92,133.91,0.063]
[1744608018412,18.64964886,133.92,133.91,0.063]
[1744608018618,30.10774574,133.92,133.91,0.063]
[1744608019421,11.45809688,133.93,133.91,0.063]
[1744608019623,18.64964886,133.95,133.91,0.063]
[1744608019819,37.45809688,133.95,133.91,0.063]
[1744608020130,11.45809688,133.93,133.91,0.063]
[1744608020424,30.10774574,133.94,133.91,0.063]
[1744608021024,26.0,133.95,133.91,0.063]
[1744608021210,43.43049688,133.95,133.91,0.063]
[1744608023027,11.45809688,133.93,133.91,0.063]
[1744608023520,30.10774574,133.92,133.91,0.063]
[1744608024524,18.64964886,133.92,133.91,82.633]
[1744608024704,11.45809688,133.93,133.91,82.633]
[1744608024912,11.45809688,133.96,133.91,100.06519688]
[1744608025235,11.45809688,133.96,133.91,17.49519688]
[1744608026035,17.43009688,133.96,133.91,11.52109688]
[1744608026832,17.43009688,133.96,133.91,17.49509688]
[1744608028244,18.64964886,133.97,133.92,11.45809688]
[1744608028245,11.45809688,133.97,133.92,11.45809688]
[1744608028535,6.82,133.99,133.95,11.45809688]
[1744608028710,6.82,133.99,133.95,94.05809688]
[1744608028915,11.45809688,133.98,133.95,82.6]
[1744608029124,11.45809688,133.97,133.95,82.6]
[1744608029538,30.39206888,133.98,133.95,82.6]
[1744608030145,5.9719,133.96,133.95,82.6]
[1744608030640,17.42969688,133.97,133.95,82.6]
[1744608030940,18.27809688,133.99,133.95,82.6]
[1744608031137,24.24879688,133.99,133.95,82.6]
[1744608034952,12.7907,133.99,133.95,94.05809688]
[1744608035445,6.82,133.99,133.95,94.05809688]
[1744608035655,11.91458159,134.01,133.96,11.45809688]
[1744608036457,11.45809688,133.99,133.95,88.5723]
[1744608037060,11.45809688,133.98,133.95,82.6]
[1744608039142,17.42909688,133.98,133.95,82.6]
[1744608039345,11.45809688,133.97,133.95,82.6]
[1744608040966,17.42909688,133.98,133.95,82.6]
[1744608041473,11.45809688,133.97,133.95,82.6]
[1744608042242,17.42909688,133.98,133.95,82.6]
[1744608044168,30.10774574,133.97,133.95,82.6]
[1744608045477,5.9719,133.96,133.95,82.6]
[1744608045867,0.14216157,133.94,133.92,82.6]
[1744608046046,30.10774574,133.93,133.92,82.6]
[1744608046241,0.14216157,133.92,133.91,0.063]
[1744608046462,11.88458159,133.92,133.91,0.063]
[1744608046876,6.82,133.95,133.92,6.5709]
[1744608047177,5.9715,133.97,133.93,11.45809688]
[1744608047360,5.9715,133.97,133.93,94.05809688]
[1744608049669,30.10774574,133.98,133.94,11.45809688]
[1744608049670,24.62074886,133.98,133.94,11.45809688]
[1744608050569,44.79181043,133.94,133.91,0.063]
[1744608050756,30.53423045,133.92,133.91,0.063]
[1744608051854,36.50793045,133.92,133.91,0.063]
[1744608052578,47.96602733,133.92,133.91,0.063]
[1744608053582,47.96602733,133.92,133.86,82.663]
[1744608053583,56.10774574,133.9,133.86,82.663]
[1744608053879,63.21206888,133.9,133.86,82.663]
[1744608054078,63.35423045,133.9,133.86,82.663]
[1744608055079,67.1496889,133.9,133.86,82.663]
[1744608055658,73.1242889,133.9,133.86,82.663]
[1744608056062,19.07613357,133.89,133.86,0.063]
[1744608056261,11.88458159,133.87,133.86,0.063]
[1744608057780,17.86048159,133.87,133.86,0.063]
[1744608059751,17.71832002,133.87,133.86,0.063]
[1744608059952,36.08364574,133.87,133.86,0.063]
[1744608060278,17.43369688,133.88,133.86,0.063]
[1744608060865,30.10774574,133.87,133.86,0.063]
[1744608061067,30.53423045,133.87,133.86,0.063]
[1744608061980,36.51013045,133.87,133.86,0.063]
[1744608062458,6.82,133.9,133.86,94.12109688]
[1744608062658,6.82,133.9,133.87,11.45809688]
[1744608062972,11.45809688,133.92,133.87,11.45809688]
[1744608063174,18.64964886,133.89,133.87,82.6]
[1744608063570,11.45809688,133.9,133.87,82.6]
[1744608063888,18.64964886,133.9,133.87,82.6]
[1744608064083,17.43219688,133.91,133.87,82.6]
[1744608064866,5.9741,133.91,133.87,94.05809688]
[1744608065059,5.9741,133.91,133.87,82.6]
[1744608065278,17.43219688,133.91,133.87,82.6]
[1744608065476,17.43219688,133.91,133.87,94.05809688]
[1744608066661,30.10774574,133.9,133.87,82.6]
[1744608068489,36.08264574,133.9,133.87,82.6]
[1744608069690,17.43239688,133.91,133.87,82.6]
[1744608069875,5.9743,133.91,133.87,94.05809688]
[1744608070191,17.43239688,133.91,133.87,82.6]
[1744608070374,36.08324574,133.88,133.87,82.6]
[1744608073096,18.79181043,133.87,133.86,0.063]
[1744608073279,30.53423045,133.87,133.86,0.063]
[1744608074074,30.53423045,133.87,133.83,82.663]
[1744608074280,11.45809688,133.86,133.83,82.289]
[1744608074693,36.08324574,133.88,133.83,93.74709688]
[1744608074993,17.43439688,133.87,133.83,93.74709688]
[1744608075184,18.64964886,133.86,133.83,82.289]
[1744608075389,30.10774574,133.86,133.83,82.289]
[1744608075694,18.64964886,133.86,133.83,82.289]
[1744608076696,30.10774574,133.85,133.83,82.289]
[1744608077692,36.08474574,133.85,133.83,82.289]
[1744608078087,11.45809688,133.84,133.83,82.289]
[1744608078300,30.10774574,133.84,133.83,82.289]
[1744608078601,0.14216157,133.83,133.82,0.063]
[1744608078790,30.24990731,133.83,133.82,0.063]
[1744608079183,36.51193045,133.83,133.82,0.063]
[1744608079993,24.62734886,133.83,133.82,0.063]
[1744608080302,24.25539688,133.84,133.82,0.063]
[1744608080500,30.53423045,133.83,133.82,0.063]
[1744608081581,36.51193045,133.83,133.82,0.063]
[1744608084486,45.07613357,133.81,133.8,0.0001]
[1744608084896,56.53423045,133.81,133.8,0.0001]
[1744608085210,45.07613357,133.81,133.8,0.0001]
[1744608086106,51.05473357,133.81,133.8,0.0001]
[1744608086515,6.82,133.84,133.8,82.2891]
[1744608086707,18.64964886,133.83,133.8,82.2891]
[1744608087713,24.62744886,133.83,133.8,82.2891]
[1744608088011,6.82,133.84,133.8,82.2891]
[1744608088215,11.45809688,133.81,133.8,0.0001]
[1744608088412,56.39206888,133.81,133.8,0.0001]
[1744608089716,62.37066888,133.81,133.8,0.0001]
[1744608090095,62.51283045,133.81,133.8,0.0001]
[1744608090611,47.97092733,133.81,133.8,0.0001]
[1744608093717,19.07613357,133.8,133.79,0.0001]
[1744608093902,41.99232733,133.8,133.79,0.0001]
[1744608094310,30.53423045,133.8,133.79,0.0001]
[1744608094616,41.99232733,133.8,133.79,0.0001]
[1744608095418,55.80231617,133.8,133.79,0.0001]
[1744608095795,32.40037009,133.8,133.79,0.0001]
[1744608096920,39.22037009,133.8,133.79,0.0001]
[1744608097222,68.60131617,133.8,133.79,0.0001]
[1744608098034,39.22037009,133.8,133.79,0.0001]
[1744608101226,68.60131617,133.8,133.79,0.0001]
[1744608101423,44.79181043,133.77,133.76,0.063]
[1744608101730,52.42137009,133.77,133.76,0.063]
[1744608102708,58.40177009,133.77,133.76,0.063]
[1744608103320,62.04907872,133.77,133.76,0.063]
[1744608106531,50.63004886,133.77,133.76,0.063]
[1744608107035,57.97528538,133.77,133.76,0.063]
[1744608107208,6.82,133.78,133.76,82.352]
[1744608107412,6.82,133.78,133.76,89.69723652]
[1744608107933,6.82,133.78,133.76,82.352]
[1744608109327,12.8,133.78,133.76,82.352]
[1744608110735,18.64964886,133.77,133.76,82.352]
[1744608113039,6.82,133.78,133.76,82.352]
[1744608113835,12.7999,133.78,133.76,82.352]
[1744608115424,6.82,133.78,133.76,82.352]
[1744608115624,26.42137009,133.77,133.76,0.063]
[1744608116841,18.64964886,133.77,133.76,0.063]
[1744608117036,12.7999,133.78,133.76,0.063]
[1744608118547,6.82,133.78,133.76,0.063]
[1744608118740,12.7999,133.78,133.76,0.063]
[1744608121142,12.7999,133.78,133.76,82.352]
[1744608121725,5.9799,133.78,133.76,82.352]
[1744608121926,13.32513652,133.78,133.76,82.352]
[1744608124041,5.9799,133.78,133.76,82.352]
[1744608125251,13.32513652,133.78,133.76,82.352]
[1744608125758,5.979,133.8,133.76,82.352]
[1744608125933,5.979,133.8,133.77,15.30933652]
[1744608126253,6.82,133.81,133.78,7.34523652]
[1744608126636,6.82,133.81,133.79,7.34523652]
[1744608126956,5.9782,133.82,133.79,89.63423652]
[1744608127536,5.9782,133.82,133.79,82.289]
[1744608128834,13.32343652,133.82,133.79,82.289]
[1744608129138,5.9779,133.83,133.79,93.75469401]
[1744608129330,5.9779,133.83,133.79,82.289]
[1744608129637,24.62754886,133.83,133.79,82.289]
[1744608129848,36.09324287,133.83,133.79,82.289]
[1744608130850,5.9786,133.81,133.79,82.289]
[1744608131435,30.54182758,133.8,133.79,82.289]
[1744608131759,48.82752159,133.8,133.76,82.352]
[1744608131964,30.11534287,133.77,133.76,82.352]
[1744608132341,18.64964886,133.77,133.76,82.352]
[1744608132550,0.28432314,133.79,133.76,82.352]
[1744608132847,30.11534287,133.78,133.76,82.352]
[1744608133061,5.9804,133.77,133.76,82.352]
[1744608134265,5.9804,133.77,133.76,81.852]
[1744608135667,17.44569401,133.78,133.76,81.852]
[1744608135844,25.46964886,133.8,133.76,11.46569401]
[1744608136040,25.46964886,133.8,133.76,94.06569401]
[1744608136369,6.82,133.8,133.77,11.46569401]
[1744608136559,6.82,133.8,133.76,94.06569401]
[1744608136944,30.11534287,133.81,133.76,94.06569401]
[1744608137348,11.46569401,133.82,133.77,11.46569401]
[1744608137567,11.46569401,133.82,133.77,94.06569401]
[1744608137765,36.09414287,133.81,133.77,82.6]
[1744608138659,30.11534287,133.78,133.77,82.6]
[1744608138861,18.64964886,133.78,133.77,82.6]
[1744608139370,24.62954886,133.78,133.77,82.6]
[1744608144770,36.09524287,133.78,133.77,82.6]
[1744608144964,0.14216157,133.77,133.75,82.663]
[1744608145173,11.89217872,133.76,133.75,0.063]
[1744608145675,17.87297872,133.76,133.75,0.063]
[1744608151170,13.7530636,133.76,133.75,0.063]
[1744608152775,6.40728471,133.76,133.75,0.063]
[1744608152957,24.63044886,133.76,133.75,0.063]
[1744608153779,5.9808,133.76,133.75,0.063]
[1744608154476,5.9799,133.79,133.75,90.00877889]
[1744608154772,5.9799,133.79,133.76,7.34577889]
[1744608155284,6.82,133.8,133.77,7.34577889]
[1744608155492,12.799,133.8,133.77,89.94577889]
[1744608155975,7.34577889,133.78,133.77,82.6]
[1744608156155,25.99542775,133.78,133.77,82.6]
[1744608156576,18.64964886,133.78,133.77,82.6]
[1744608157779,24.62954886,133.78,133.77,82.6]
[1744608160084,5.9795,133.79,133.77,82.6]
[1744608160265,24.62914886,133.79,133.77,82.6]
[1744608163984,14.5922636,133.8,133.77,89.94577889]
[1744608163985,6.82,133.8,133.77,89.94577889]